Cogmind - Beta 11.1 @@@ ROGUE MODE // 2022.05.02 @ 15:40:24 Player: Olga Result: Self-destructed Performance ------------- Evolutions (4) 2000 Regions Visited (8) 1600 Robots Destroyed (15) 75 Value Destroyed (355) 355 Prototype IDs (4) 80 Alien Tech Used (0) 0 Bonus (500) 500 TOTAL SCORE: 4610 Bonus ------- Entered DSFs 500 Cogmind --------- Core Integrity 807/850 Matter 300/300 Energy 67/100 System Corruption 0% Temperature Cool (2) Movement Flying (32) Location -6/Factory Parts ------- > --- POWER (1) -------- (None) > --- PROPULSION (4) --- Cesium-ion Thruster Cesium-ion Thruster > --- UTILITY (8) ------ Small Storage Unit Machine Analyzer Advanced Visual Processing Unit Advanced Sensor Array Core Analyzer Improved Utility Shielding Hacking Suite System Shield > --- WEAPON (2) ------- Flail > --- INVENTORY (8) ---- Advanced Power Amplifier Advanced Sensor Array Improved Terrain Scanner Improved Terrain Scan Processor Improved Terrain Scan Processor Stasis Canceller Improved Propulsion Shielding Improved Utility Shielding Peak State ------------ > --- POWER ------------ Light Deuterium Engine > --- PROPULSION ------- Cesium-ion Thruster Cesium-ion Thruster Cesium-ion Thruster > --- UTILITY ---------- Small Storage Unit Machine Analyzer Advanced Visual Processing Unit Advanced Sensor Array Core Analyzer Experimental Thermal Shield Hacking Suite System Shield > --- WEAPON ----------- Flail > --- INVENTORY -------- Structural Scanner Advanced Sensor Array Improved Terrain Scanner Improved Terrain Scan Processor Improved Terrain Scan Processor Stasis Canceller Improved Utility Shielding [Rating: 47] Favorites ----------- Power Light Deuterium Engine Engine Light Deuterium Engine Propulsion Cesium-ion Thruster Flight Unit Cesium-ion Thruster Utility Advanced Visual Processing Unit Device Structural Scanner Storage Small Storage Unit Processor Advanced Visual Processing Unit Hackware Hacking Suite Protection Improved Utility Shielding Weapon Flail Launcher Rocket Launcher Impact Weapon Flail Build | -11 -10 -9 -8 -7 -7 -6 -6 -6 ------- Run | Scr Mat Mat Mat Fac DSF Fac Was Fac Slots Evolved 8 | . . 2 2 2 . 2 . . Power . | . . . . . . . . . Propulsion 2 | . . 2 . . . . . . Utility 6 | . . . 2 2 . 2 . . Weapon . | . . . . . . . . . Parts Attached 35 | . 5 5 12 2 3 6 2 . Power 2 | . . 1 1 . . . . . Engine 2 | . . 1 1 . . . . . Core . | . . . . . . . . . Reactor . | . . . . . . . . . Propulsion 10 | . 2 2 3 . 3 . . . Treads . | . . . . . . . . . Leg . | . . . . . . . . . Wheel . | . . . . . . . . . Hover . | . . . . . . . . . Flight 10 | . 2 2 3 . 3 . . . Utility 18 | . 1 1 6 2 . 6 2 . Device 8 | . . 1 3 2 . 1 1 . Storage 1 | . . . . . . 1 . . Processor 4 | . 1 . 2 . . 1 . . Hackware 2 | . . . . . . 2 . . Protection 3 | . . . 1 . . 1 1 . Artifact . | . . . . . . . . . Weapon 5 | . 2 1 2 . . . . . Energy Gun . | . . . . . . . . . Energy Cannon . | . . . . . . . . . Ballistic Gun . | . . . . . . . . . Ballistic Cannon . | . . . . . . . . . Launcher 4 | . 2 1 1 . . . . . Special Weapon . | . . . . . . . . . Impact Weapon 1 | . . . 1 . . . . . Slashing Weapon . | . . . . . . . . . Piercing Weapon . | . . . . . . . . . Special Melee Weapon . | . . . . . . . . . Unidentified Prototypes 1 | . . . . . . . 1 . Parts Lost 11 | . . 1 3 . 4 1 . 2 Power 1 | . . . . . . . . 1 Propulsion 6 | . . . 3 . 1 1 . 1 Utility 2 | . . . . . 2 . . . Weapon 2 | . . 1 . . 1 . . . Highest Loss Streak 4 | . . 1 2 . 4 1 . 2 To Critical Strikes . | . . . . . . . . . Average Slot Usage (%) 79 | . 51 82 83 92 88 77 86 80 Engine 6 | . . 6 9 7 7 6 6 3 Flight 27 | . 28 44 34 23 25 21 20 17 Device 7 | . . . 10 23 18 6 6 6 Storage 2 | . . . . . . 4 6 6 Processor 13 | . . 11 11 15 15 15 20 20 Hackware 4 | . . . . . . 8 13 13 Protection 4 | . . . . 7 7 6 6 6 Launcher 6 | . 22 20 9 7 6 . . . Impact Weapon 5 | . . . 7 7 7 6 6 6 Naked Turns 3 | . 3 . . . . . . . Heaviest Build 15 | . 8 13 11 13 13 15 15 15 Greatest Support 20 | 3 8 16 19 15 20 20 15 15 Greatest Overweight (x) . | . . . . . . . . . Average Overweight (x) . | . . . . . . . . . Largest Inventory Capacity 8 | . 5 5 5 5 5 8 8 8 Average Capacity 6 | . 5 5 5 5 5 7 8 8 Most Carried 8 | . 5 4 5 4 5 8 8 8 Average Carried 5 | . 4 3 4 3 4 6 7 8 Final Capacity 8 | 5 5 5 5 5 5 8 8 8 Final Carried 8 | 5 5 4 5 3 5 8 8 8 Class Distribution -------------------- 43% | Sprinter 35% | Hacker-Sprinter 21% | Scout Dominant Class ---------------- Sprinter | -10/Materials Sprinter | -9/Materials Sprinter | -8/Materials Sprinter | -7/Factory Scout | -7/DSF Hacker-Sprinter | -6/Factory Hacker-Sprinter | -6/Waste Hacker-Sprinter | -6/Factory Resources | -11 -10 -9 -8 -7 -7 -6 -6 -6 ----------- Run | Scr Mat Mat Mat Fac DSF Fac Was Fac Matter Collected 759 | 200 . 22 147 . 18 191 181 . Remotely . | . . . . . . . . . Salvage Created 215 | . . 124 39 . 52 . . . Parts 21 | . 1 9 7 . 4 . . . Haulers Intercepted . | . . . . . . . . . Recyclers Shooed . | . . . . . . . . . Parts Field Recycled . | . . . . . . . . . Retrieved Matter . | . . . . . . . . . Parts Self-Destructed . | . . . . . . . . . Prevented . | . . . . . . . . . Kills | -11 -10 -9 -8 -7 -7 -6 -6 -6 ------- Run | Scr Mat Mat Mat Fac DSF Fac Was Fac Combat Hostiles Destroyed 12 | . 1 6 3 . 2 . . . AOE 12 | . 1 6 3 . 2 . . . Classes Destroyed 6 | . 1 2 2 . 1 . . . Worker 1 | . . . 1 . . . . . Operator 1 | . . 1 . . . . . . Watcher 1 | . . . 1 . . . . . Swarmer 6 | . . 3 3 . . . . . Cutter 2 | . . . . . 2 . . . Grunt 4 | . 1 3 . . . . . . Best Kill Streak 7 | . 1 7 5 . 1 . . . Combat Bots Only 6 | . 1 6 3 . 1 . . . Max Kills in Single Turn 3 | . 1 2 3 . 1 . . . Gunslinging . | . . . . . . . . . Exploded 2 | . 1 2 2 . 1 . . . Melee . | . . . . . . . . . Uniques/NPCs Destroyed . | . . . . . . . . . Combat | -11 -10 -9 -8 -7 -7 -6 -6 -6 -------- Run | Scr Mat Mat Mat Fac DSF Fac Was Fac Damage Taken 947 | . 34 151 138 . 476 93 . 55 Core 353 | . 12 9 47 . 242 19 . 24 Absorbed by Shields 19 | . . . . . 19 . . . Redirected to Shielding 66 | . . . 9 . 45 12 . . Core Remaining (%) 89 | 100 95 97 91 . 65 . . . Volleys Fired 17 | . 2 5 2 . 8 . . . Largest 2 | . 2 2 1 . 1 . . . Hottest 66 | . 66 66 30 . 30 . . . Shots Fired 24 | . 4 10 2 . 8 . . . Gun . | . . . . . . . . . Cannon . | . . . . . . . . . Launcher 24 | . 4 10 2 . 8 . . . Special . | . . . . . . . . . Kinetic . | . . . . . . . . . Thermal . | . . . . . . . . . Explosive 24 | . 4 10 2 . 8 . . . Electromagnetic . | . . . . . . . . . Robot Hit Streak 4 | . 4 2 . . 3 . . . Robot Miss Streak 2 | . . 1 . . 2 . . . Penetration Max . | . . . . . . . . . Secondary Targets . | . . . . . . . . . Shots Hit Robots 8 | . 4 2 . . 2 . . . Core Hits 26 | . 2 11 5 . 8 . . . Critical Kills . | . . . . . . . . . Critical Parts Destroyed . | . . . . . . . . . Critical Strikes . | . . . . . . . . . Melee Attacks 5 | . . . . . 2 3 . . Impact 5 | . . . . . 2 3 . . Slashing . | . . . . . . . . . Piercing . | . . . . . . . . . Sneak Attacks . | . . . . . . . . . Combat Hostiles . | . . . . . . . . . Follow-up Attacks . | . . . . . . . . . Damage Inflicted 1078 | . 130 396 235 . 317 . . . Guns . | . . . . . . . . . Cannons . | . . . . . . . . . Explosions 1078 | . 130 396 235 . 317 . . . Melee . | . . . . . . . . . Ramming . | . . . . . . . . . Kinetic . | . . . . . . . . . Thermal . | . . . . . . . . . Explosive 1078 | . 130 396 235 . 317 . . . Electromagnetic . | . . . . . . . . . Impact . | . . . . . . . . . Slashing . | . . . . . . . . . Piercing . | . . . . . . . . . Highest Corruption . | . . . . . . . . . Average Corruption . | . . . . . . . . . Corruption Purged . | . . . . . . . . . Corruption Blocked . | . . . . . . . . . Overload Shots . | . . . . . . . . . Overflow Damage 46 | . . 4 18 . 24 . . . Projectiles . | . . . . . . . . . Explosions 46 | . . 4 18 . 24 . . . Melee . | . . . . . . . . . Knockbacks . | . . . . . . . . . Impact . | . . . . . . . . . Kinetic . | . . . . . . . . . Secondary . | . . . . . . . . . Self-Inflicted Damage 230 | . . 70 . . 160 . . . Shots 7 | . . 3 . . 4 . . . Rammed . | . . . . . . . . . Targets Rammed . | . . . . . . . . . Kicked . | . . . . . . . . . Crushed . | . . . . . . . . . Highest Temperature 21 | . 10 21 . . . 2 . . Average Temperature 6 | . 7 7 . . . 2 . . Received Heat Transfer 183 | . 18 45 45 . 18 45 . 12 Siege Activations . | . . . . . . . . . Robots Corrupted . | . . . . . . . . . Combat Hostiles . | . . . . . . . . . Parts Fried . | . . . . . . . . . Impact Corruptions . | . . . . . . . . . Robots Melted . | . . . . . . . . . Combat Hostiles . | . . . . . . . . . Parts Melted . | . . . . . . . . . Heat Transferred . | . . . . . . . . . Parts Sabotaged . | . . . . . . . . . Parts Stolen . | . . . . . . . . . Parts Stripped . | . . . . . . . . . Power Chain Reactions . | . . . . . . . . . Missiles Intercepted . | . . . . . . . . . Alert | -11 -10 -9 -8 -7 -7 -6 -6 -6 ------- Run | Scr Mat Mat Mat Fac DSF Fac Was Fac Peak Influence 563 | . 192 563 397 180 197 338 118 121 Initial 237 | . . 87 237 180 129 96 118 82 Average 217 | . 54 398 330 180 162 205 118 89 Maximum Alert Level 2 | . . 2 1 . . 1 . . Low Security (%) 51 | . 100 14 . 100 100 39 100 100 Level 1 41 | . . 30 100 . . 60 . . Level 2 7 | . . 54 . . . . . . Level 3 . | . . . . . . . . . Level 4 . | . . . . . . . . . Level 5 . | . . . . . . . . . High Security . | . . . . . . . . . Max Security . | . . . . . . . . . Squads Dispatched 9 | . 1 2 . . 2 4 . . Investigation 5 | . . 2 . . . 3 . . Extermination . | . . . . . . . . . Reinforcement 4 | . 1 . . . 2 1 . . Assault . | . . . . . . . . . Garrison . | . . . . . . . . . Intercept . | . . . . . . . . . Searches Triggered . | . . . . . . . . . Construction Impeded . | . . . . . . . . . Haulers Reinforced . | . . . . . . . . . Active Scanning Responses . | . . . . . . . . . Cargo Convoy Interrupts . | . . . . . . . . . Stealth | -11 -10 -9 -8 -7 -7 -6 -6 -6 --------- Run | Scr Mat Mat Mat Fac DSF Fac Was Fac Distress Signals 2 | . 1 . . . . 1 . . Communications Jammed . | . . . . . . . . . Distress Signals . | . . . . . . . . . Times Spotted 66 | . 7 14 9 . 7 21 . 8 Peak Tracking Total 11 | . 7 9 5 . 4 11 . 8 Tactical Retreats 9 | . 2 1 . . 1 4 . 1 Traps | -11 -10 -9 -8 -7 -7 -6 -6 -6 ------- Run | Scr Mat Mat Mat Fac DSF Fac Was Fac Traps Triggered 6 | . . . . . 3 3 . . Indirectly . | . . . . . . . . . Trap Hack Attempts . | . . . . . . . . . Triggered . | . . . . . . . . . Disarmed . | . . . . . . . . . Reprogrammed . | . . . . . . . . . Reused . | . . . . . . . . . Traps Extracted . | . . . . . . . . . Installed . | . . . . . . . . . Triggered . | . . . . . . . . . Machines | -11 -10 -9 -8 -7 -7 -6 -6 -6 ---------- Run | Scr Mat Mat Mat Fac DSF Fac Was Fac Machines Disabled 7 | . . 4 2 . . 1 . . Max in Single Turn 2 | . . 2 2 . . 1 . . Machines Sabotaged . | . . . . . . . . . Garrisons Compromised . | . . . . . . . . . Overloaded Fab Kills . | . . . . . . . . . Hacking | -11 -10 -9 -8 -7 -7 -6 -6 -6 --------- Run | Scr Mat Mat Mat Fac DSF Fac Was Fac Machines Accessed 14 | . . 5 1 1 . 5 . 2 Terminals 9 | . . 5 . 1 . 2 . 1 Fabricators 1 | . . . . . . 1 . . Repair Stations 1 | . . . . . . 1 . . Recycling Units . | . . . . . . . . . Scanalyzers 2 | . . . 1 . . . . 1 Garrison Access 1 | . . . . . . 1 . . Total Hacks 43 | . . 15 2 2 . 9 . 15 Successful 23 | . . 4 2 1 . 3 . 13 Failed 20 | . . 11 . 1 . 6 . 2 Catastrophic 5 | . . 4 . . . 1 . . Database Lockouts . | . . . . . . . . . Manual 17 | . . 15 . . . 2 . . Terminals 21 | . . 15 . 2 . 3 . 1 Fabricators 2 | . . . . . . 2 . . Repair Stations 2 | . . . . . . 2 . . Recycling Units . | . . . . . . . . . Scanalyzers 16 | . . . 2 . . . . 14 Garrison Access 2 | . . . . . . 2 . . Terminal Hacks 4 | . . 1 . 1 . 1 . 1 Prototype ID Bank 1 | . . . . . . . . 1 Open DSF 2 | . . . . 1 . 1 . . Terminal Index 1 | . . 1 . . . . . . Fabricator Hacks . | . . . . . . . . . Repair Station Hacks 1 | . . . . . . 1 . . Scan Component 1 | . . . . . . 1 . . Recycling Unit Hacks . | . . . . . . . . . Scanalyzer 14 | . . . 2 . . . . 12 Insert Component 7 | . . . 1 . . . . 6 Analyze 7 | . . . 1 . . . . 6 Garrison Access Hacks . | . . . . . . . . . Unauthorized Hacks 4 | . . 3 . . . 1 . . Terminals 4 | . . 3 . . . 1 . . Assimilate 1 | . . . . . . 1 . . Botnet 3 | . . 3 . . . . . . Fabricators . | . . . . . . . . . Repair Stations . | . . . . . . . . . Recycling Units . | . . . . . . . . . Scanalyzers . | . . . . . . . . . Garrison Access . | . . . . . . . . . Data Cores Recovered 1 | . . 1 . . . . . . Used . | . . . . . . . . . Hacking Detections 12 | . . 5 . 1 . 4 . 2 Full Trace Events 5 | . . 3 . . . 2 . . Feedback Events . | . . . . . . . . . Feedback Blocked . | . . . . . . . . . Robot Schematics Acquired . | . . . . . . . . . Robots Built . | . . . . . . . . . Authchips . | . . . . . . . . . Time . | . . . . . . . . . Total Robot Build Rating . | . . . . . . . . . Part Schematics Acquired 7 | . . . 1 . . . . 6 Parts Built . | . . . . . . . . . Authchips . | . . . . . . . . . Time . | . . . . . . . . . Total Part Build Rating . | . . . . . . . . . Parts Repaired . | . . . . . . . . . Time . | . . . . . . . . . Parts Recycled . | . . . . . . . . . Recycled Matter . | . . . . . . . . . Retrieved Matter . | . . . . . . . . . Retrieved Components . | . . . . . . . . . Parts Scanalyzed 7 | . . . 1 . . . . 6 Part Schematics Acquired 7 | . . . 1 . . . . 6 Parts Damaged 1 | . . . 1 . . . . . Bothacking | -11 -10 -9 -8 -7 -7 -6 -6 -6 ------------ Run | Scr Mat Mat Mat Fac DSF Fac Was Fac Used RIF Installer . | . . . . . . . . . Robots Hacked . | . . . . . . . . . Non-combat . | . . . . . . . . . Combat . | . . . . . . . . . Robot Hacks Applied . | . . . . . . . . . Relay Couplers Released . | . . . . . . . . . Fabnet Peak Effective % . | . . . . . . . . . Robots Rewired . | . . . . . . . . . Allies Hacked . | . . . . . . . . . Hacks Repelled . | . . . . . . . . . Allies | -11 -10 -9 -8 -7 -7 -6 -6 -6 -------- Run | Scr Mat Mat Mat Fac DSF Fac Was Fac Total Allies 1 | . . . . . . 1 . . Largest Group 1 | . . . . . . 1 . . Highest-Rated Group 26 | . . . . . . 26 . . Highest-Rated Ally 26 | . . . . . . 26 . . Total Orders . | . . . . . . . . . Ally Attacks . | . . . . . . . . . Total Damage . | . . . . . . . . . Kills . | . . . . . . . . . Allies Corrupted . | . . . . . . . . . Allies Melted . | . . . . . . . . . Intel | -11 -10 -9 -8 -7 -7 -6 -6 -6 ------- Run | Scr Mat Mat Mat Fac DSF Fac Was Fac Robot Analysis Total . | . . . . . . . . . Derelict Logs Recovered . | . . . . . . . . . Drone Launches . | . . . . . . . . . Drone Recoveries . | . . . . . . . . . Exploration | -11 -10 -9 -8 -7 -7 -6 -6 -6 ------------- Run | Scr Mat Mat Mat Fac DSF Fac Was Fac Turns Passed 611 | . 57 81 97 4 74 217 36 45 Spaces Moved 1588 | 1 111 218 220 3 93 693 101 148 Core 5 | 1 4 . . . . . . . Treads . | . . . . . . . . . Legs . | . . . . . . . . . Wheels . | . . . . . . . . . Hover . | . . . . . . . . . Flight 1583 | . 107 218 220 3 93 693 101 148 Fastest Speed 26 | 50 32 26 26 29 26 26 29 29 Average Speed 28 | 50 32 26 28 29 28 28 29 29 Slowest Speed 50 | 50 50 32 29 29 29 29 29 32 Overloaded Moves . | . . . . . . . . . Propulsion Burnouts . | . . . . . . . . . Robots Hopped 11 | . 2 . 3 . . 4 . 2 Cave-ins Triggered . | . . . . . . . . . Exploration Rate (%) 33 | 2 22 38 25 . 86 15 74 7 Regions Visited 8 Branch Regions . Pre-discovered Areas . | . . . . . . . . . Known Exits Taken 1 | . . . . 1 . . . . Unknown Exits Taken 4 | 1 1 1 1 . . . . . Scrap Searched . | . . . . . . . . . Spaces Dug 15 | . . . . . 14 1 . . Terrain Destroyed 168 | . 42 59 19 . 47 1 . . Melee 1 | . . . . . . 1 . . Projectile . | . . . . . . . . . AOE 167 | . 42 59 19 . 47 . . . Terrain Rammed . | . . . . . . . . . Walls Destroyed . | . . . . . . . . . Machines Disabled . | . . . . . . . . . Actions | -11 -10 -9 -8 -7 -7 -6 -6 -6 --------- Run | Scr Mat Mat Mat Fac DSF Fac Was Fac Total 1697 | . 125 229 250 5 130 704 108 146 Wait 2 | . . . . . 2 . . . Move 1559 | . 106 217 213 2 92 685 100 144 Hop 11 | . 2 . 3 . . 4 . 2 Pick Up 26 | . 5 1 9 . 4 5 2 . Fast Attach 19 | . 5 2 6 1 1 2 2 . Attach 10 | . . 3 3 1 1 2 . . Detach 3 | . . 1 2 . . . . . Swap 6 | . . . 3 . 1 2 . . Drop 22 | . 5 . 9 1 2 1 4 . Fire 17 | . 2 5 2 . 8 . . . Melee 5 | . . . . . 2 3 . . Ram . | . . . . . . . . . Kick . | . . . . . . . . . Crush . | . . . . . . . . . Escape Stasis 17 | . . . . . 17 . . . Rewire . | . . . . . . . . . Trap . | . . . . . . . . . Miscellaneous . | . . . . . . . . . Route ------- -11/Scrapyard -10/Materials -9/Materials (discovered 2 exits: *Mat / [*Min]) -8/Materials -7/Factory -7/DSF -6/Factory -6/Waste -6/Factory History --------- Turn | Location | Event 1 | -11/Scrapyard | Released all parts (6) 1 | -11/Scrapyard | Discovered new exit (range 0) 1 | -11/Scrapyard | Entered Materials 40 | -10/Materials | Discovered new exit (range 9) 58 | -10/Materials | Entered another Materials area 58 | -9/Materials | Evolved 2 slots: Propulsion x2 117 | -9/Materials | Discovered new exit (range 9) 136 | -9/Materials | Discovered new exit (range 11) 139 | -9/Materials | Entered another Materials area 139 | -8/Materials | Evolved 2 slots: Utility x2 234 | -8/Materials | Discovered new exit (range 10) 236 | -8/Materials | Entered Factory 236 | -7/Factory | Evolved 2 slots: Utility x2 240 | -7/Factory | Identified exit to DSF 240 | -7/Factory | Entered DSF 258 | -7/DSF | Additional patrols routed to DSF 308 | -7/DSF | Discovered new exit (range 16) 314 | -7/DSF | Entered Factory 314 | -6/Factory | Evolved 2 slots: Utility x2 335 | -6/Factory | Lost 4 parts (1n2u1w) 531 | -6/Factory | Sucked down chute 531 | -6/Factory | Entered Waste 531 | -6/Waste | The area was eerily silent 545 | -6/Waste | Discovered new exit (range 19) 552 | -6/Waste | Found Prototype Device 552 | -6/Waste | Identified Exp. Thermal Shield 567 | -6/Waste | Entered Factory 612 | -6/Factory | Self-destructed Last Messages --------------- Scanning: Stasis Canceller... Schematic downloaded. 00581_ >> Machine Analyzer network decryption results: 00581_ Repair Station x1 00587_ >> Machine Analyzer network decryption results: 00587_ Terminal x1 00589_ Connecting with Terminal... >>Prototypes Downloading prototype IDs... Exp. Targeting Computer Cld. Deuterium Engine Com. Ion Cannon 00594_ K-01 Serf collects debris. 00595_ >> Machine Analyzer network decryption results: 00595_ Repair Station x2 00596_ Lgt. Deuterium Engine destroyed. 00596_ Cesium-ion Thruster destroyed. 00597_ >> Machine Analyzer network decryption results: 00597_ Repair Station x1 00601_ ALERT: All DSF locations entering lockdown mode. Map ----- +----------------------------------------------------+ | ?????????????????????????????????????????????????? | | ?????????????????????????????????????????????????? | | ?????????????????????????????????????????????????? | | ?????????????????????????????????????????????????? | | ?????????????????????????????????????????????????? | | ?????????????????????????????????????????????????? | | ?????????????????????????????????????????????????? | | ?????????????????????????????????????????????????? | | ?????????????????????????????????????????????????? | | ?????????????????????????????????????????????????? | | ?????????????????????????????????????????????????? | | ?????????????????????????????????????????????????? | | ?????????????????????????????????????????????????? | | ?????????????????????????????????????? ???????? | | ????????????????????????????????????# ???????? | | ????????????????????????????????????# ???????? | | ????????????????????????????????????# ???????? | | ????????????????????????????"""""""?# #??????? | | ????????????????????????????"""""""?# #??????? | | ????????????????????????????"""""""?# #??????? | | ????????????????????????????"""""""?+ #??????? | | ????????????????????????????????????# #??????? | | ????????????????????????????????????# #??????? | | ????????????????????????????????????# ? #??????? | | ???????????????????????############## ? #######? | | ???????????????????????# @ # # | | ???????????????????????# # ? + """ " | | ???????????????????????# """" """" # # """ " | | ???????????????????????# """" """" # # """ " | | ???????????????????????# """" """" # # | | ???????????????????????# """" """" # # """ " | | ???????????????????????# # # """ " | | ???????????????????????# """" """" # #! """ " | | ???????????????????????# """" """" # # | | ???????????????????????# """" """" ? + | | ???????????????????????# """" """" # # ! | | ???????????????????????# ? # #! = | | ?????????????######################## ######## | | ?????????????# | | ?????????????# | | ?????????????# | | ?????????????# | | ?????????????# | | ??????########## ##########+############ # | | ??????# !! ] # #??????? ????# # # | | ??????# ! # #????? ??#* * # # | | ??????# + #???# # # # | | ??????# # #???# # "" + # | | ??????# # #???# # "" # # | | ??????# "S # #???# # T" # # | +----------------------------------------------------+ Best States ------------- Heat Dissipation 37 Energy Generation 14 Energy Capacity 250 Matter Stores 300 Matter Capacity 300 Sight Range 20 Robot Scan Range 16 Terrain Scan Range 16 Terrain Scan Density 10 Utility Shielding 66 Evasion (%) 64 Targeting Accuracy 5 Core Analysis 6 Offensive Hacking 10 Defensive Hacking 10 Item Schematics ----------------- Structural Scanner | -8/Materials | Scanalyzed Imp. Terrain Scan Processor | -6/Factory | Scanalyzed Adv. Sensor Array | -6/Factory | Scanalyzed Imp. Terrain Scanner | -6/Factory | Scanalyzed Imp. Propulsion Shielding | -6/Factory | Scanalyzed Adv. Power Amplifier | -6/Factory | Scanalyzed Stasis Canceller | -6/Factory | Scanalyzed Robot Schematics ------------------ None Fabricated ------------ Nothing Alien Tech Used ----------------- None Achievements -------------- None Challenges ------------ None Game ------ Seed RemoteSegregatorJammer Manual? 0 Play Time 00:28:07 Cumulative 160.5 hours Start 2022.05.02 @ 15:14:35 End 2022.05.02 @ 15:40:24 Sessions 1 Manual Loads 0 Difficulty Rogue Special Mode None Game No. 262 Rogue 261 Adventurer 0 Explorer 1 Win Type - Total 7 Types 7/0/0/0/0/0/0/0/0 Lore% 60 Gallery% 63 Achievement% 53 Wizard Run 0 Options --------- ASCII 1 Keyboard 0 Movement Vi Keybinds 0 Fullscreen 1 Font 18/SmallcapsGlow Map View 76x50 Tactical HUD 1 Map Filters NONE Filters NONE Steam 1 RUN: 7cdd6a7c-40ee-430d-b313-61ed2c7941f6